bitfinex-derivatives/quotes_SOLF0:USTF0_20250110
["timestamp","ask_amount","ask_price","bid_price","bid_amount"]
[1736499623822,6.66967976,192.19,192.15,2.6021]
[1736499624526,6.66967976,192.19,192.16,2.602]
[1736499624726,6.66967976,192.19,192.13,6.66967976]
[1736499625128,6.66967976,192.19,192.17,2.6018]
[1736499627425,13.79107976,192.21,192.17,2.6018]
[1736499628230,9.27107976,192.21,192.17,2.6018]
[1736499628426,9.27147976,192.19,192.14,2.6023]
[1736499628729,6.66967976,192.17,192.09,9.80257976]
[1736499628928,6.66967976,192.17,192.14,2.6023]
[1736499629125,6.66967976,192.17,192.09,9.80257976]
[1736499629126,6.66967976,192.19,192.11,6.66967976]
[1736499629328,6.66967976,192.19,192.13,6.66967976]
[1736499629531,6.66967976,192.19,192.15,2.6021]
[1736499630031,6.66967976,192.17,192.15,2.6021]
[1736499630231,6.66967976,192.17,192.09,9.80257976]
[1736499630527,6.66967976,192.15,192.08,1.6305]
[1736499630727,6.66967976,192.13,192.09,2.603]
[1736499631230,9.27217976,192.13,192.09,2.603]
[1736499631430,6.66967976,192.11,192.09,2.603]
[1736499631931,6.66967976,192.13,192.09,2.603]
[1736499633129,6.66967976,192.13,192.1,2.6028]
[1736499638233,6.66967976,192.11,192.07,2.6032]
[1736499638841,9.27257976,192.11,192.06,2.6034]
[1736499639542,2.603,192.1,192.06,2.6034]
[1736499640641,9.27277976,192.09,192.05,2.6035]
[1736499641142,9.27277976,192.09,192.02,11.35957976]
[1736499641340,9.27277976,192.09,192.06,2.6034]
[1736499641536,9.27277976,192.09,192.02,11.35957976]
[1736499641836,1.5502,192.14,192.01,4.90214738]
[1736499641837,6.66967976,192.07,192.01,4.90214738]
[1736499642044,6.66967976,192.07,192.0,6.66967976]
[1736499642440,4.52,192.08,192.02,6.66967976]
[1736499642944,6.66967976,192.07,192.0,6.66967976]
[1736499643545,6.66967976,192.07,192.04,2.6036]
[1736499645738,6.66967976,192.07,192.0,6.66967976]
[1736499645944,6.66967976,192.07,192.05,2.6035]
[1736499647548,6.66967976,192.07,192.04,2.6037]
[1736499648346,4.52,192.08,192.04,2.6037]
[1736499648550,6.66967976,192.09,192.02,6.66967976]
[1736499649149,6.66967976,192.09,192.05,2.6035]
[1736499649346,6.66967976,192.09,192.02,6.66967976]
[1736499649547,6.66967976,192.07,192.0,6.66967976]
[1736499649747,6.66967976,192.07,192.02,2.604]
[1736499650048,4.52,192.1,191.96,1.478]
[1736499650049,2.6037,192.04,191.96,1.478]
[1736499650249,2.6037,192.04,191.97,6.66967976]
[1736499650850,2.6037,192.04,192.0,2.6041]
[1736499651552,2.6037,192.04,192.01,2.6041]
[1736499652147,6.66967976,192.03,191.99,2.6043]
[1736499652347,9.27357976,192.03,191.99,2.6043]
[1736499652541,4.52,192.03,191.83,57.5741382]
[1736499652745,4.52,192.03,191.96,2.6047]
[1736499652746,6.66967976,191.99,191.96,2.6047]
[1736499653044,11.18967976,192.03,191.97,6.66967976]
[1736499653243,4.52,192.03,192.01,2.6041]
[1736499654043,4.52,192.03,192.0,2.6042]
[1736499654247,4.52,192.03,191.97,6.66967976]
[1736499654646,4.52,192.03,191.98,2.6044]
[1736499654843,4.52,192.03,191.97,6.66967976]
[1736499655854,4.52,192.03,192.01,2.604]
[1736499656153,4.52,192.03,191.97,6.66967976]
[1736499656654,4.52,192.03,191.98,2.6044]
[1736499656954,4.52,192.03,191.97,6.66967976]
[1736499657155,11.18967976,192.03,192.01,2.604]
[1736499657354,11.18967976,192.03,191.97,6.66967976]
[1736499657755,11.18967976,192.03,191.98,2.6044]
[1736499657952,11.18967976,192.03,191.97,6.66967976]
[1736499658452,11.18967976,192.03,192.0,2.6041]
[1736499659055,6.66967976,192.01,191.98,2.6044]
[1736499659355,6.66967976,192.01,191.94,6.66967976]
[1736499659756,6.66967976,192.01,191.97,2.6045]
[1736499659959,6.66967976,192.01,191.94,6.66967976]
[1736499660149,6.66967976,192.01,191.99,2.6043]
[1736499660656,11.18967976,192.03,191.96,6.66967976]
[1736499661259,11.18967976,192.03,192.01,2.604]
[1736499662063,4.52,192.03,192.02,2.604]
[1736499662254,144.25520239,192.16,192.0,6.66967976]
[1736499662461,6.66967976,192.09,192.02,6.66967976]
[1736499662661,6.66967976,192.09,192.07,2.6032]
[1736499663157,6.66967976,192.09,192.06,2.6034]
[1736499663355,6.66967976,192.07,191.98,3.0361]
[1736499663559,6.66967976,192.05,191.98,3.0361]
[1736499663766,9.27327976,192.05,192.0,2.6042]
[1736499664569,9.27327976,192.05,191.98,3.0361]
[1736499664570,6.66967976,192.03,191.99,2.6044]
[1736499665563,9.27357976,192.03,191.98,2.6045]
[1736499666763,9.27357976,192.03,191.99,2.6044]
[1736499667966,6.66967976,192.01,191.98,2.6045]
[1736499669069,6.66967976,191.99,191.91,1.5962]
[1736499669262,6.66967976,191.96,191.91,1.5962]
[1736499669464,6.66967976,191.96,191.93,2.6051]
[1736499670562,6.66967976,191.96,191.91,4.2015]
[1736499670767,6.66967976,191.96,191.91,2.6053]
[1736499672164,9.27447976,191.96,191.91,2.6053]
[1736499674168,6.66967976,191.94,191.91,2.6053]
[1736499674971,2.6048,191.96,191.91,2.6053]
[1736499675167,6.66967976,191.94,191.91,2.6053]
[1736499675369,6.66967976,191.92,191.86,1.5972]
[1736499675670,6.66967976,191.9,191.81,3.0696]
[1736499675966,6.66967976,191.88,191.84,2.6063]
[1736499676371,9.27557976,191.88,191.84,2.6064]
[1736499677063,6.66967976,191.88,191.84,2.6064]
[1736499677863,6.66967976,191.88,191.85,2.6062]
[1736499678069,6.66967976,191.88,191.81,9.73927976]
[1736499678468,6.66967976,191.88,191.81,3.0696]
[1736499678771,6.66967976,191.88,191.82,6.66967976]
[1736499679176,6.66967976,191.88,191.85,2.6062]
[1736499680569,6.66967976,191.88,191.81,3.0696]
[1736499681269,6.66967976,191.88,191.85,2.6062]
[1736499682872,6.66967976,191.88,191.86,2.6061]
[1736499691080,6.66967976,191.88,191.81,1.5444]
[1736499691283,6.66967976,191.85,191.8,1.5463]
[1736499691681,6.66967976,191.85,191.82,2.6066]
[1736499691881,6.66967976,191.85,191.8,1.5463]
[1736499692383,6.66967976,191.85,191.82,2.6066]
[1736499693180,2.6059,191.88,191.8,8.21597976]
[1736499693382,4.52,191.9,191.82,6.66967976]
[1736499693587,6.66967976,191.89,191.82,6.66967976]
[1736499693780,6.66967976,191.87,191.82,6.66967976]
[1736499694685,6.66967976,191.87,191.8,8.21597976]
[1736499695084,6.66967976,191.87,191.85,2.6062]
[1736499695482,6.66967976,191.9,191.84,6.66967976]
[1736499696191,6.66967976,191.9,191.82,6.66967976]
[1736499696786,6.66967976,191.9,191.86,2.606]
[1736499697287,6.66967976,191.9,191.81,3.0878]
[1736499697482,6.66967976,191.86,191.81,3.0878]
[1736499697683,6.66967976,191.86,191.81,1.5923]
[1736499698785,9.27587976,191.86,191.83,2.6065]
[1736499700089,6.66967976,191.86,191.83,2.6065]
[1736499701787,1.5553,191.9,191.81,6.66967976]
[1736499701985,3.0651,191.95,191.83,6.66967976]
[1736499702192,6.66967976,191.91,191.89,2.6056]
[1736499702692,3.0651,191.95,191.85,6.66967976]
[1736499702890,6.66967976,191.93,191.87,6.66967976]
[1736499703089,6.66967976,191.95,191.89,6.66967976]
[1736499704092,2.6045,191.98,191.77,199.52]
[1736499704093,1.4926,192.0,191.91,6.66967976]
[1736499704291,6.66967976,191.99,191.93,6.66967976]
[1736499704487,6.66967976,192.01,191.95,6.66967976]
[1736499704691,6.66967976,192.03,192.01,2.6041]
[1736499704994,6.66967976,192.03,191.97,6.66967976]
[1736499704995,6.66967976,192.04,191.97,6.66967976]
[1736499705398,144.25520239,192.06,191.99,6.66967976]
[1736499705597,6.66967976,192.06,191.99,6.66967976]
[1736499706802,6.66967976,192.06,192.02,2.6039]
[1736499707302,13.02269132,192.08,192.02,2.6039]
[1736499708399,10.41949132,192.08,192.04,2.6037]
[1736499708607,10.41949132,192.08,191.97,4.7526]
[1736499708608,14.93949132,192.11,191.99,10.41949132]
[1736499708905,14.93949132,192.11,192.06,2.6034]
[1736499709206,10.41949132,192.14,192.02,10.41949132]
[1736499709406,4.52,192.13,192.02,10.41949132]
[1736499709700,2.6027,192.12,191.99,10.41949132]
[1736499709908,10.41949132,192.11,191.99,10.41949132]
[1736499710209,2.6029,192.1,191.99,10.41949132]
[1736499711105,2.603,192.09,191.99,10.41949132]
[1736499711709,2.603,192.09,192.03,2.6038]
[1736499712611,2.603,192.09,191.99,10.41949132]
[1736499712807,2.603,192.09,192.04,2.6037]
[1736499713111,10.41949132,192.11,191.99,10.41949132]
[1736499713312,14.93949132,192.11,192.07,2.6033]
[1736499714304,14.93949132,192.11,191.99,10.41949132]
[1736499714305,4.52,192.11,191.99,10.41949132]
[1736499714510,10.41949132,192.14,192.02,10.41949132]
[1736499716515,2.6026,192.13,192.07,2.6032]
[1736499716716,10.41949132,192.14,192.07,2.6032]
[1736499718207,2.6027,192.12,192.07,2.6032]
[1736499720510,2.6031,192.09,191.97,199.7526]
[1736499721016,2.6031,192.09,192.04,2.6037]
[1736499722719,2.6032,192.08,192.02,2.6039]
[1736499723218,2.6032,192.08,191.97,199.7526]
[1736499724322,10.41949132,192.08,191.97,4.7526]
[1736499725216,2.6037,192.05,192.0,2.6042]
[1736499725421,10.41949132,192.08,191.97,4.7526]
[1736499725617,11.92579132,192.08,191.97,3.1504]
[1736499725817,10.41949132,192.05,191.97,3.1504]
[1736499726016,10.41949132,192.05,191.91,1.5965]
[1736499726216,10.41949132,192.05,191.92,1.4911]
[1736499726413,2.6042,192.01,191.96,2.6048]
[1736499726617,14.93949132,192.02,191.92,1.4911]
[1736499727020,2.6044,192.0,191.94,2.605]
[1736499727817,14.93949132,192.02,191.96,2.6048]
[1736499728012,17.54359132,192.02,191.96,2.6048]
[1736499728422,4.52,192.02,191.93,10.41949132]
[1736499729421,4.52,192.02,191.97,2.6045]
[1736499730213,7.1241,192.02,191.97,2.6045]
[1736499730619,7.1241,192.02,191.92,1.4911]
[1736499730620,2.6043,192.0,191.95,2.6049]
[1736499731118,2.6043,192.0,191.92,1.4911]
[1736499731521,2.6043,192.0,191.94,2.6049]
[1736499732724,14.93949132,192.02,191.92,1.4911]
[1736499732915,2.6045,191.98,191.92,1.4911]
[1736499733223,14.93949132,192.02,191.92,1.4911]
[1736499733723,2.6044,191.99,191.93,2.6051]
[1736499735326,9.27783532,191.99,191.93,2.6051]
[1736499735531,9.27783532,191.99,191.94,2.6051]
[1736499737826,6.67343532,192.01,191.92,8.16453532]
[1736499738928,6.67343532,191.99,191.95,2.6048]
[1736499739129,6.67343532,191.99,191.92,8.16453532]
[1736499739429,6.67343532,191.97,191.93,2.6051]
[1736499740825,9.27813532,191.97,191.93,2.6051]
[1736499741031,6.67343532,191.95,191.91,2.6055]
[1736499741531,6.67343532,191.95,191.92,2.6053]
[1736499741928,6.67343532,191.97,191.9,6.67343532]
[1736499742129,9.27813532,191.97,191.92,2.6052]
[1736499743534,6.67343532,191.97,191.84,4.6582]
[1736499743732,9.27833532,191.95,191.9,2.6055]
[1736499744135,6.67343532,191.93,191.84,4.6582]
[1736499744432,6.67343532,191.93,191.87,6.67343532]
[1736499744824,6.67343532,191.93,191.88,2.6059]
[1736499745030,6.67343532,191.91,191.85,6.67343532]
[1736499745534,6.67343532,191.91,191.87,2.606]
[1736499745730,6.67343532,191.91,191.85,6.67343532]
[1736499746241,6.67343532,191.91,191.86,2.6061]
[1736499746630,1.6249,191.94,191.85,6.67343532]
[1736499746838,6.67343532,191.93,191.85,6.67343532]
[1736499747233,6.67343532,191.91,191.87,2.6059]
[1736499747431,12.05995025,191.94,191.84,1.6267]
[1736499748135,2.6055,191.91,191.86,2.6061]
[1736499758446,12.05995025,191.94,191.84,1.6267]
[1736499758743,10.43505025,191.88,191.75,10.43505025]
[1736499759040,4.52,191.87,191.76,196.5089]
[1736499759748,2.6062,191.86,191.82,2.6067]
[1736499760244,4.52,191.87,191.76,196.5089]
[1736499760444,4.52,191.87,191.76,1.5089]
[1736499760744,4.52,191.87,191.67,85.36]
[1736499760940,4.52,191.87,191.72,10.43505025]
[1736499760941,10.43505025,191.85,191.72,10.43505025]
[1736499761344,2.607,191.8,191.76,2.6074]
[1736499762450,2.6068,191.81,191.77,2.6074]
[1736499766852,2.6068,191.81,191.76,2.6075]
[1736499767354,2.6071,191.79,191.74,2.6077]
[1736499769255,6.68774259,191.78,191.74,2.6077]
[1736499769457,9.29494259,191.78,191.74,2.6077]
[1736499771255,6.68774259,191.76,191.74,2.6077]
[1736499771754,6.68774259,191.76,191.71,9.70464259]
[1736499771755,6.68774259,191.76,191.72,2.6079]
[1736499772353,6.68774259,191.74,191.72,2.6079]
[1736499774453,2.608,191.73,191.69,2.6084]
[1736499774657,6.68774259,191.72,191.69,2.6084]
[1736499775056,6.68774259,191.72,191.66,6.68774259]
[1736499776162,2.6082,191.71,191.67,2.6086]
[1736499776460,6.68774259,191.68,191.54,98.35890935]
[1736499776661,6.68774259,191.65,191.62,2.6093]
[1736499776858,6.68774259,191.65,191.58,6.68774259]
[1736499777359,6.68774259,191.65,191.62,2.6093]
[1736499777563,6.68774259,191.65,191.58,6.68774259]
[1736499778263,6.68774259,191.65,191.63,2.6092]
[1736499779262,6.68774259,191.65,191.64,2.6091]
[1736499779765,18.7938,191.78,191.62,6.68774259]
[1736499779958,6.68774259,191.69,191.62,6.68774259]
[1736499780564,2.6082,191.71,191.67,2.6087]
[1736499780863,6.68774259,191.68,191.67,2.6087]
[1736499781556,2.6082,191.71,191.67,2.6087]
[1736499781757,6.68774259,191.68,191.67,2.6087]
[1736499784556,6.68774259,191.73,191.66,6.68774259]
[1736499785163,4.52,191.76,191.68,6.68774259]
[1736499785363,11.20774259,191.76,191.68,6.68774259]
[1736499786264,6.68774259,191.76,191.68,6.68774259]
[1736499786863,6.68774259,191.76,191.64,3.1028]
[1736499787065,6.68774259,191.74,191.68,6.68774259]
[1736499787474,6.68774259,191.74,191.72,2.6079]
[1736499787673,6.68774259,191.74,191.68,6.68774259]
[1736499787862,4.52,191.78,191.7,6.68774259]
[1736499788059,86.9563,191.83,191.72,6.68774259]
[1736499788265,6.68774259,191.8,191.74,6.68774259]
[1736499788562,149.46620239,191.92,191.66,199.52]
[1736499788563,144.25520239,191.92,191.76,6.68774259]
[1736499788769,6.68774259,191.83,191.76,6.68774259]
[1736499788969,6.68774259,191.83,191.77,1.52]
[1736499789969,6.68774259,191.83,191.78,9.75204259]
[1736499790968,6.68774259,191.83,191.81,2.6067]
[1736499791271,17.56932921,191.86,191.81,2.6067]
[1736499791872,2.6063,191.85,191.81,2.6067]
[1736499793364,14.96312921,191.86,191.83,2.6066]
[1736499793564,10.44312921,191.89,191.83,2.6066]
[1736499793764,4.52,191.88,191.83,2.6066]
[1736499793972,4.52,191.88,191.78,3.0643]
[1736499794175,4.52,191.88,191.82,2.6067]
[1736499794476,4.52,191.87,191.82,2.6067]
[1736499795170,10.44312921,191.89,191.78,3.0643]
[1736499795473,14.96312921,191.89,191.78,3.0643]
[1736499796070,13.04892921,191.89,191.83,2.6064]
[1736499796273,17.56892921,191.89,191.78,3.0643]
[1736499796673,17.56892921,191.89,191.83,2.6064]
[1736499796872,17.56892921,191.89,191.78,3.0643]
[1736499797777,17.56892921,191.89,191.84,2.6063]
[1736499800180,2.6059,191.88,191.84,2.6063]
[1736499800375,14.96312921,191.89,191.78,3.0643]
[1736499800578,10.44312921,191.86,191.77,1.52]
[1736499801580,2.6067,191.83,191.78,2.6071]
[1736499802374,10.44312921,191.83,191.78,2.6071]
[1736499802578,2.6067,191.82,191.77,2.6073]
[1736499802880,4.52,191.82,191.72,4.6888]
[1736499803581,4.52,191.82,191.76,2.6075]
[1736499803582,2.6069,191.81,191.76,2.6075]
[1736499803785,4.52,191.82,191.76,2.6075]
[1736499804383,2.607,191.8,191.76,2.6075]
[1736499805577,2.607,191.8,191.72,4.6888]
[1736499805578,4.52,191.82,191.72,4.6888]
[1736499805783,2.6072,191.78,191.72,1.5724]
[1736499806483,2.6072,191.78,191.73,2.6078]
[1736499806678,2.6075,191.76,191.68,10.44312921]
[1736499806981,10.44312921,191.8,191.68,10.44312921]
[1736499807172,2.6074,191.77,191.72,2.6079]
[1736499807373,10.44312921,191.77,191.66,1.5317]
[1736499807784,2.6076,191.76,191.71,2.6081]
[1736499807978,10.44312921,191.77,191.71,2.6081]
[1736499808384,2.6077,191.75,191.71,2.6081]
[1736499808585,10.44312921,191.77,191.66,1.5317]
[1736499810183,13.05052921,191.77,191.73,2.6078]
[1736499810686,10.44312921,191.8,191.68,10.44312921]
[1736499810880,6.047,191.81,191.71,10.44312921]
[1736499811079,4.52,191.81,191.71,10.44312921]
[1736499811381,6.68614404,191.8,191.74,6.68614404]
[1736499811885,6.68614404,191.8,191.78,2.6072]
[1736499812077,6.68614404,191.8,191.74,6.68614404]
[1736499814185,6.68614404,191.8,191.77,2.6073]
[1736499816896,4.52,191.83,191.78,2.6072]
[1736499816897,9.29284404,191.82,191.78,2.6072]
[1736499818087,6.68614404,191.82,191.78,2.6072]
[1736499818495,6.68614404,191.82,191.79,2.6071]
[1736499818794,13.81254404,191.84,191.76,6.68614404]
[1736499818990,4.52,191.86,191.83,2.6065]
[1736499819190,4.52,191.86,191.8,6.68614404]
[1736499819191,11.20614404,191.86,191.8,6.68614404]
[1736499819384,4.1568,191.88,191.8,6.68614404]
[1736499819692,6.68614404,191.88,191.85,2.6062]
[1736499819882,6.68614404,191.9,191.84,6.68614404]
[1736499820087,6.68614404,191.9,191.88,2.6059]
[1736499820489,6.68614404,191.9,191.84,6.68614404]
[1736499821095,6.68614404,191.9,191.82,6.68614404]
[1736499822101,9.29174404,191.9,191.85,2.6063]
[1736499822796,6.68614404,191.9,191.82,6.68614404]
[1736499822992,6.68614404,191.9,191.87,2.6059]
[1736499824396,6.68614404,191.9,191.86,2.6061]
[1736499825200,6.68614404,191.9,191.74,201.1202]
[1736499825500,6.68614404,191.88,191.84,2.6063]
[1736499825795,6.68614404,191.86,191.74,201.1202]
[1736499826000,6.68614404,191.86,191.79,6.68614404]
[1736499826594,9.29224404,191.86,191.81,2.6067]
[1736499827804,9.29224404,191.86,191.79,6.68614404]
[1736499828103,6.68614404,191.86,191.82,2.6066]
[1736499830205,2.606,191.87,191.82,2.6066]
[1736499830504,6.68614404,191.86,191.82,2.6066]
[1736499833610,9.29244404,191.86,191.81,2.6068]
[1736499833806,4.52,191.92,191.77,6.68614404]
[1736499833807,6.68614404,191.84,191.77,6.68614404]
[1736499834000,6.68614404,191.82,191.75,6.68614404]
[1736499834205,6.68614404,191.8,191.73,8.32754404]
[1736499835007,6.68614404,191.8,191.75,2.6075]
[1736499835008,9.29324404,191.8,191.75,2.6075]
[1736499835510,6.68614404,191.78,191.75,2.6075]
[1736499836306,6.68614404,191.8,191.73,8.32754404]
[1736499836514,6.68614404,191.8,191.76,2.6075]
[1736499837006,6.68614404,191.78,191.73,1.6414]
[1736499837317,6.68614404,191.78,191.75,2.6076]
[1736499841709,9.29324404,191.8,191.75,2.6076]
[1736499842211,9.29324404,191.8,191.72,8.18494404]
[1736499842513,9.29324404,191.8,191.76,2.6075]
[1736499842714,6.68614404,191.8,191.74,6.68614404]
[1736499843018,6.68614404,191.84,191.78,6.68614404]
[1736499843815,6.68614404,191.84,191.8,2.6068]
[1736499843816,9.29254404,191.84,191.8,2.6068]
[1736499844512,6.68614404,191.84,191.8,2.6068]
[1736499844717,6.68614404,191.84,191.78,6.68614404]
[1736499844919,6.68614404,191.84,191.79,2.6071]
[1736499845219,9.29264404,191.84,191.79,2.6071]
[1736499845416,6.68614404,191.84,191.79,2.6071]
[1736499846116,2.6066,191.83,191.79,2.6071]
[1736499846923,9.29254404,191.84,191.8,2.607]
[1736499847618,6.68614404,191.84,191.78,6.68614404]
[1736499847819,2.6066,191.83,191.76,6.68614404]
[1736499849219,2.6066,191.83,191.79,2.6071]
[1736499850423,6.68614404,191.82,191.77,2.6073]
[1736499851122,6.68614404,191.82,191.78,2.6072]
[1736499852224,9.29284404,191.82,191.78,2.6072]
[1736499860727,2.6068,191.81,191.78,2.6072]
[1736499861028,6.68614404,191.8,191.74,6.68614404]
[1736499861229,2.6075,191.77,191.72,1.4988]
[1736499861432,6.68614404,191.76,191.72,1.4988]
[1736499861627,6.68614404,191.76,191.69,62.99415352]
[1736499861827,6.68614404,191.74,191.68,9.70424404]
[1736499862029,6.68614404,191.74,191.68,8.20774404]
[1736499862324,6.68614404,191.72,191.69,2.6084]
[1736499862525,6.68614404,191.72,191.66,6.68614404]
[1736499863330,2.6079,191.73,191.68,6.68614404]
[1736499863733,2.6079,191.73,191.67,6.68614404]
[1736499864132,2.6079,191.73,191.69,2.6083]
[1736499868434,6.68614404,191.72,191.69,2.6083]
[1736499868930,6.68614404,191.72,191.64,1.5028]
[1736499869136,6.68614404,191.7,191.62,203.29434404]
[1736499869339,6.68614404,191.68,191.62,203.29434404]
[1736499869727,9.29474404,191.68,191.64,2.609]
[1736499870735,6.68614404,191.68,191.64,2.609]
[1736499872130,4.52,191.72,191.62,8.29434404]
[1736499872438,6.68614404,191.69,191.62,8.29434404]
[1736499873133,7.1282,191.71,191.62,1.6082]
[1736499873134,6.68614404,191.67,191.62,1.6082]
[1736499873940,6.68614404,191.67,191.64,2.6091]
[1736499875643,6.68614404,191.67,191.6,6.68614404]
[1736499875943,6.68614404,191.65,191.62,2.6094]
[1736499878549,6.68614404,191.63,191.58,1.5826]
[1736499880045,6.68614404,191.61,191.56,6.68614404]
[1736499880233,4.52,191.61,191.49,1.5295]
[1736499880438,11.20614404,191.61,191.59,2.6097]
[1736499883947,2.6097,191.6,191.56,2.6102]
[1736499884147,6.68614404,191.59,191.56,2.6102]
[1736499884347,4.52,191.61,191.54,6.68614404]
[1736499884547,6.68614404,191.6,191.57,2.61]
[1736499885040,6.68614404,191.6,191.58,2.6099]
[1736499885246,9.29584404,191.6,191.49,4.6109]
[1736499885547,9.29584404,191.6,191.52,6.68614404]
[1736499885749,6.68614404,191.58,191.52,6.68614404]
[1736499886151,6.68614404,191.56,191.49,4.6109]
[1736499886351,6.68614404,191.56,191.49,8.21564404]
[1736499886547,6.68614404,191.56,191.51,6.68614404]
[1736499886754,6.68614404,191.58,191.51,6.68614404]
[1736499887249,6.68614404,191.56,191.55,2.6103]
[1736499889454,6.68614404,191.58,191.57,2.61]
[1736499890447,6.68614404,191.58,191.56,2.6102]
[1736499891150,6.68614404,191.58,191.5,1.548]
[1736499891350,6.68614404,191.56,191.54,2.6104]
[1736499892453,6.68614404,191.56,191.55,2.6104]
[1736499893453,6.68614404,191.56,191.54,2.6105]
[1736499896656,6.68614404,191.56,191.5,1.548]
[1736499896852,1.5849,191.68,191.53,6.68614404]
[1736499897058,6.68614404,191.62,191.55,6.68614404]
[1736499897256,6.68614404,191.62,191.56,1.497]
[1736499897658,4.52,191.67,191.57,6.68614404]
[1736499897860,144.25520239,191.72,191.59,6.68614404]
[1736499898050,6.68614404,191.66,191.59,6.68614404]
[1736499898248,6.68614404,191.64,191.58,1.4876]
[1736499898454,4.52,191.69,191.57,1.4968]
[1736499898455,6.68614404,191.6,191.57,1.4968]
[1736499898650,6.68614404,191.6,191.58,2.61]
[1736499899458,6.68614404,191.6,191.57,4.1069]
[1736499899662,6.68614404,191.6,191.57,1.4968]
[1736499900162,6.68614404,191.58,191.51,1.4876]
[1736499900363,6.68614404,191.56,191.48,6.68614404]
[1736499900662,6.68614404,191.54,191.52,2.6107]
[1736499900962,6.68614404,191.54,191.48,6.68614404]
[1736499901159,6.68614404,191.54,191.47,3.0961]
[1736499901360,6.68614404,191.54,191.47,9.78224404]
[1736499902464,6.68614404,191.54,191.52,2.6106]
[1736499903265,4.52,191.6,191.51,6.68614404]
[1736499903463,6.68614404,191.58,191.51,6.68614404]
[1736499904265,6.68614404,191.58,191.56,2.6101]
[1736499904660,6.68614404,191.58,191.51,6.68614404]
[1736499904868,6.68614404,191.6,191.58,2.6099]
[1736499905471,1.5178,191.68,191.61,2.6095]
[1736499905659,6.68614404,191.64,191.57,6.68614404]
[1736499905860,6.68614404,191.64,191.58,1.5399]
[1736499906671,6.68614404,191.62,191.58,1.5399]
[1736499906874,6.68614404,191.64,191.61,2.6094]
[1736499907073,6.68614404,191.64,191.58,1.5399]
[1736499907569,6.68614404,191.65,191.59,6.68614404]
[1736499907963,6.68614404,191.65,191.64,2.6091]
[1736499908371,3.2048,191.72,191.59,3.0458]
[1736499908570,11.20614404,191.68,191.61,6.68614404]
[1736499908970,11.20614404,191.68,191.66,2.6088]
[1736499912469,11.20614404,191.68,191.61,6.68614404]
[1736499912674,11.20614404,191.68,191.65,2.609]
[1736499914175,11.20614404,191.68,191.61,6.68614404]
[1736499914379,4.52,191.68,191.63,6.68614404]
[1736499915679,6.68614404,191.72,191.65,6.68614404]
[1736499916377,6.68614404,191.7,191.63,6.68614404]
[1736499917477,6.68614404,191.7,191.67,2.6086]
[1736499917679,6.68614404,191.7,191.59,198.0458]
[1736499917867,6.68614404,191.72,191.65,6.68614404]
[1736499919180,9.29454404,191.7,191.65,2.6089]
[1736499919376,9.29454404,191.7,191.63,6.68614404]
[1736499919777,6.68614404,191.7,191.63,6.68614404]
[1736499920381,6.68614404,191.7,191.65,2.609]
[1736499920577,6.68614404,191.7,191.63,6.68614404]
[1736499920977,9.29454404,191.7,191.62,2.6094]
[1736499921177,9.29454404,191.7,191.62,6.68614404]
[1736499921482,6.68614404,191.7,191.64,2.6091]
[1736499921678,6.68614404,191.68,191.59,198.0458]
[1736499921879,6.68614404,191.68,191.61,6.68614404]
[1736499922077,6.68614404,191.68,191.64,2.609]
[1736499922284,9.29474404,191.68,191.64,2.609]
[1736499922681,9.29474404,191.68,191.65,2.609]
[1736499923485,6.68614404,191.68,191.65,2.609]
[1736499927894,2.6084,191.7,191.66,2.6088]
[1736499928092,6.68614404,191.69,191.66,2.6088]
[1736499928492,2.6084,191.7,191.63,6.68614404]
[1736499928493,2.6082,191.71,191.67,2.6087]
[1736499928793,6.68614404,191.71,191.65,6.68614404]
[1736499929193,6.68614404,191.71,191.68,2.6085]
[1736499930298,4.52,191.73,191.67,6.68614404]
[1736499930490,11.20614404,191.73,191.67,6.68614404]
[1736499931598,11.20614404,191.73,191.7,2.6083]
[1736499932798,6.68614404,191.73,191.7,2.6083]
[1736499933500,9.29404404,191.73,191.7,2.6083]
[1736499933796,6.68614404,191.71,191.69,2.6084]
[1736499935394,6.68614404,191.71,191.59,198.0458]
[1736499935596,6.68614404,191.71,191.63,6.68614404]
[1736499936099,9.29434404,191.71,191.63,6.68614404]
[1736499936797,9.29434404,191.71,191.68,2.6086]